bitfinex/quotes_BTCUSD_20230106
["timestamp","ask_amount","ask_price","bid_price","bid_amount"]
[1673000850232,0.62531068,16797.0,16796.0,2.40228647]
[1673000850661,0.63031068,16797.0,16796.0,2.50436923]
[1673000851450,0.63031068,16797.0,16796.0,2.80436923]
[1673000851719,0.63031068,16797.0,16796.0,2.50436923]
[1673000852231,0.63031068,16797.0,16796.0,2.80436923]
[1673000852456,0.80897051,16797.0,16796.0,2.80436923]
[1673000852710,0.80897219,16797.0,16796.0,2.80436923]
[1673000852935,0.4516518,16797.0,16796.0,2.80436923]
[1673000853164,0.4506518,16797.0,16796.0,2.80436923]
[1673000857508,0.4506518,16797.0,16796.0,10.30436923]
[1673000864567,0.45053596,16797.0,16796.0,10.30436923]
[1673000865163,0.45053596,16797.0,16796.0,10.48706401]
[1673000865377,0.45053596,16797.0,16796.0,10.30436923]
[1673000865600,0.80785635,16797.0,16796.0,10.30436923]
[1673000866135,0.80785635,16797.0,16796.0,9.78590305]
[1673000866383,0.62919484,16797.0,16796.0,9.48582029]
[1673000869872,0.62919484,16797.0,16796.0,9.48590305]
[1673000872710,1.07582151,16797.0,16796.0,9.48590305]
[1673000873225,0.80894706,16797.0,16796.0,9.48590305]
[1673000876744,0.89678884,16797.0,16796.0,9.48590305]
[1673000877242,0.80894706,16797.0,16796.0,9.48590305]
[1673000878694,1.07697475,16797.0,16796.0,9.48590305]
[1673000878953,0.80894706,16797.0,16796.0,9.48590305]
[1673000880053,1.07697617,16797.0,16796.0,9.48590305]
[1673000880307,0.80894706,16797.0,16796.0,9.48590305]
[1673000880547,1.07697587,16797.0,16796.0,9.48590305]
[1673000880791,0.80894706,16797.0,16796.0,9.48590305]
[1673000881278,0.89699544,16797.0,16796.0,9.48582029]
[1673000881522,0.89074144,16797.0,16796.0,9.48582029]
[1673000882653,0.89074144,16797.0,16796.0,10.07969742]
[1673000882912,0.80269306,16797.0,16796.0,10.07969742]
[1673000883392,0.8904153,16797.0,16796.0,10.07969742]
[1673000884112,0.80269306,16797.0,16796.0,10.07969742]
[1673000884581,0.80269306,16797.0,16796.0,9.48582029]
[1673000884821,0.80269306,16797.0,16796.0,9.48590305]
[1673000886834,1.0707069,16797.0,16796.0,9.48582029]
[1673000887081,0.80269306,16797.0,16796.0,9.48590305]
[1673000888830,1.07070431,16797.0,16796.0,9.48590305]
[1673000889080,0.62407764,16797.0,16796.0,10.00436923]
[1673000889879,0.62407764,16797.0,16796.0,9.48590305]
[1673000892025,1.07070431,16797.0,16796.0,9.48582029]
[1673000892267,1.07070431,16797.0,16796.0,9.48590305]
[1673000892569,1.07070431,16797.0,16796.0,9.48582029]
[1673000893552,0.80269306,16797.0,16796.0,9.48590305]
[1673000894065,1.07070531,16797.0,16796.0,9.48590305]
[1673000894625,0.80269306,16797.0,16796.0,9.48590305]
[1673000895154,0.89056485,16797.0,16796.0,9.48590305]
[1673000895715,0.80269306,16797.0,16796.0,9.48590305]
[1673000896231,1.07071761,16797.0,16796.0,9.48590305]
[1673000896533,0.80269306,16797.0,16796.0,8.89044129]
[1673000896798,0.84666622,16797.0,16796.0,8.89044129]
[1673000897064,0.84666622,16797.0,16796.0,1.39044129]
[1673000897320,1.45836322,16797.0,16796.0,1.39044129]
[1673000897572,0.84666622,16797.0,16796.0,1.39044129]
[1673000900726,0.59270445,16797.0,16796.0,0.697351]
[1673000901012,0.14607778,16797.0,16796.0,0.102]
[1673000901232,0.75777478,16797.0,16796.0,0.102]
[1673000901479,0.04397316,16797.0,16796.0,0.102]
[1673000901742,0.49074366,16797.0,16796.0,0.102]
[1673000901970,0.49074366,16797.0,16796.0,0.602]
[1673000902500,0.49074366,16797.0,16796.0,0.502]
[1673000902754,0.49074366,16797.0,16796.0,0.602]
[1673000903286,0.49074366,16797.0,16796.0,0.60192103]
[1673000904533,0.49074366,16797.0,16796.0,0.50192103]
[1673000904814,0.49074366,16797.0,16796.0,0.10192103]
[1673000907015,0.61087317,16797.0,16796.0,0.10192103]
[1673000907265,0.49074366,16797.0,16796.0,0.10200379]
[1673000907607,0.49074366,16797.0,16796.0,0.10192103]
[1673000909096,0.49074366,16797.0,16796.0,0.10200379]
[1673000909335,0.49074366,16797.0,16796.0,0.10192103]
[1673000910121,0.49074366,16797.0,16796.0,0.10200379]
[1673000910735,0.49074366,16797.0,16796.0,0.10192103]
[1673000911085,0.61087317,16797.0,16796.0,0.10192103]
[1673000912191,0.16410267,16797.0,16796.0,0.10192103]
[1673000912452,0.04397316,16797.0,16796.0,0.10192103]
[1673000912708,0.04397316,16797.0,16796.0,0.10200379]
[1673000912951,0.49058283,16797.0,16796.0,0.10192103]
[1673000913754,0.04397316,16797.0,16796.0,0.10200379]
[1673000913958,0.04397316,16797.0,16796.0,0.10192103]
[1673000915113,0.16942562,16797.0,16796.0,0.10192103]
[1673000918756,0.16942562,16797.0,16796.0,0.10200379]
[1673000919015,0.16942562,16797.0,16796.0,0.10192103]
[1673000919741,0.16942562,16797.0,16796.0,0.10200379]
[1673000920231,0.61594627,16797.0,16796.0,0.10200379]
[1673000920479,0.16942562,16797.0,16796.0,0.10192103]
[1673000920980,0.16942562,16797.0,16796.0,0.10200379]
[1673000921732,0.04397316,16797.0,16796.0,0.10200379]
[1673000921987,0.44650218,16797.0,16796.0,0.10200379]
[1673000922237,0.49047534,16797.0,16796.0,0.10200379]
[1673000923762,0.04397316,16797.0,16796.0,0.10192103]
[1673000924231,0.60141645,16797.0,16796.0,0.10192103]
[1673000924696,0.15492165,16797.0,16796.0,0.10192103]
[1673000925199,0.72736014,16797.0,16796.0,0.10192103]
[1673000925434,0.28086643,16797.0,16796.0,0.10192103]
[1673000925685,0.15492165,16797.0,16796.0,0.10192103]
[1673000925931,0.15492165,16797.0,16796.0,0.72150585]
[1673000926180,0.55744292,16797.0,16796.0,0.72139604]
[1673000926439,0.60141608,16797.0,16796.0,0.72139604]
[1673000927398,0.60141608,16797.0,16796.0,0.7214788]
[1673000929801,0.60141608,16797.0,16796.0,0.72139604]
[1673000930049,0.72201031,16797.0,16796.0,0.7214788]
[1673000931498,0.72201031,16797.0,16796.0,0.72139604]
[1673000932520,0.72201031,16797.0,16796.0,0.7214788]
[1673000932521,0.27551588,16797.0,16796.0,0.7214788]
[1673000932776,0.27551588,16797.0,16796.0,0.72139604]
[1673000933492,0.27551588,16797.0,16796.0,0.7214788]
[1673000933997,0.15492165,16797.0,16796.0,0.7214788]
[1673000937039,0.15492165,16797.0,16796.0,0.73569604]
[1673000940463,0.60163165,16797.0,16796.0,0.7357788]
[1673000941211,0.60163165,16797.0,16796.0,1.1357788]
[1673000942225,0.60163165,16797.0,16796.0,1.7311578]
[1673000944691,0.60168295,16797.0,16796.0,1.7311578]
[1673000945709,0.60168295,16797.0,16796.0,1.3311578]
[1673000946467,0.60168295,16797.0,16796.0,1.33109415]
[1673000951095,0.72349378,16797.0,16796.0,1.33109415]
[1673000951340,0.60168295,16797.0,16796.0,1.33109415]
[1673000952346,0.60168295,16797.0,16796.0,0.73571515]
[1673000953360,0.60168295,16797.0,16796.0,1.03571515]
[1673000953867,0.60168295,16797.0,16796.0,0.73571515]
[1673000954241,0.72349378,16797.0,16796.0,0.73571515]
[1673000956703,0.72349378,16797.0,16796.0,0.73571122]
[1673000957499,0.27673248,16797.0,16796.0,0.73571122]
[1673000957796,0.67950535,16797.0,16796.0,0.73571122]
[1673000957992,0.72347851,16797.0,16796.0,0.73571122]
[1673000958237,0.27673248,16797.0,16796.0,0.73571122]
[1673000959774,0.27673248,16797.0,16796.0,0.73563239]
[1673000959977,0.27673248,16797.0,16796.0,0.73571122]
[1673000960476,0.27673248,16797.0,16796.0,1.23571122]
[1673000960996,0.27673248,16797.0,16796.0,0.73571122]
[1673000962012,0.27673248,16797.0,16796.0,1.13571122]
[1673000962260,0.27673248,16797.0,16796.0,0.73571122]
[1673000962761,0.23275932,16797.0,16796.0,0.73571122]
[1673000963013,0.67952851,16797.0,16796.0,0.73571122]
[1673000963478,0.67952851,16797.0,16796.0,1.23571122]
[1673000963721,0.67952851,16797.0,16796.0,0.73571122]
[1673000963983,0.67952851,16797.0,16796.0,1.23571122]
[1673000964226,0.55772179,16797.0,16796.0,1.23571122]
[1673000965752,0.55772179,16797.0,16796.0,0.73571122]
[1673000966249,0.55772179,16797.0,16796.0,1.23571122]
[1673000968173,0.55772179,16797.0,16796.0,1.23561433]
[1673000972023,0.67513651,16797.0,16796.0,0.7355355]
[1673000972290,0.67513651,16797.0,16796.0,1.2355355]
[1673000973127,0.22836321,16797.0,16796.0,0.73569295]
[1673000973342,0.67515157,16797.0,16796.0,0.73569295]
[1673000973596,0.22836321,16797.0,16796.0,1.2355355]
[1673000974109,0.67515476,16797.0,16796.0,1.23569295]
[1673000975149,0.22836321,16797.0,16796.0,0.73569295]
[1673000975636,0.22836321,16797.0,16796.0,0.7355355]
[1673000975637,0.84006021,16797.0,16796.0,0.7355355]
[1673000976137,0.22836321,16797.0,16796.0,0.7355355]
[1673000978988,0.22836321,16797.0,16796.0,1.2355355]
[1673000978989,0.11094849,16797.0,16796.0,1.2355355]
[1673000979240,0.11094849,16797.0,16796.0,1.23575287]
[1673000979771,0.11094849,16797.0,16796.0,1.2355355]
[1673000980272,0.11094849,16797.0,16796.0,1.23575287]
[1673000980525,0.11094849,16797.0,16796.0,1.13575287]
[1673000980771,0.11094849,16797.0,16796.0,0.7355355]
[1673000981287,0.11094849,16797.0,16796.0,0.73575287]
[1673000981504,0.11094849,16797.0,16796.0,0.7355355]
[1673000982563,0.11094849,16797.0,16796.0,1.2355355]
[1673000985780,0.11094849,16797.0,16796.0,0.73569594]
[1673000986040,0.11094849,16797.0,16796.0,0.7355355]
[1673000986723,0.11094849,16797.0,16796.0,0.73569594]
[1673000986971,0.11094849,16797.0,16796.0,0.7355355]
[1673000989039,0.11094849,16797.0,16796.0,0.73542062]
[1673000992580,0.11094849,16797.0,16796.0,0.73686949]
[1673000992824,0.11094849,16797.0,16796.0,0.73542062]
[1673000993485,0.18368588,16797.0,16796.0,0.73542062]
[1673000994686,0.18368588,16797.0,16796.0,1.23542062]
[1673000994970,0.11094849,16797.0,16796.0,0.73542062]
[1673000999646,0.11094849,16797.0,16796.0,0.73549305]
[1673000999907,0.11094849,16797.0,16796.0,0.73542062]
[1673001002198,0.55773928,16797.0,16796.0,1.23549305]
[1673001002456,0.11094849,16797.0,16796.0,1.23542062]
[1673001002714,0.55773378,16797.0,16796.0,1.7538868]
[1673001002962,0.55773378,16797.0,16796.0,1.23542062]
[1673001003207,0.55773378,16797.0,16796.0,1.23549305]
[1673001003449,0.55773378,16797.0,16796.0,1.75395923]
[1673001003693,0.55773378,16797.0,16796.0,1.23542062]
[1673001005795,0.55773378,16797.0,16796.0,1.23549305]
[1673001006000,0.55773378,16797.0,16796.0,1.23542062]
[1673001009303,0.55773378,16797.0,16796.0,0.73542062]
[1673001009789,0.55773378,16797.0,16796.0,0.73549305]
[1673001010195,0.55773378,16797.0,16796.0,1.23549305]
[1673001012732,0.6751497,16797.0,16796.0,0.73542062]
[1673001012986,0.6751497,16797.0,16796.0,0.73534619]
[1673001013250,0.6751497,16797.0,16796.0,0.73541862]
[1673001013507,0.6751497,16797.0,16796.0,0.73534619]
[1673001013753,0.55773378,16797.0,16796.0,0.73534619]
[1673001015291,0.55773378,16797.0,16796.0,0.73541862]
[1673001015501,0.55773378,16797.0,16796.0,0.73534619]
[1673001017078,0.11094849,16797.0,16796.0,1.23534619]
[1673001017340,0.55770637,16797.0,16796.0,0.73541862]
[1673001017586,0.67511954,16797.0,16796.0,0.73534619]
[1673001017858,0.22836166,16797.0,16796.0,0.73534619]
[1673001018098,0.67511619,16797.0,16796.0,0.73534619]
[1673001018638,0.55770302,16797.0,16796.0,0.73534619]
[1673001019766,0.55770302,16797.0,16796.0,0.73541862]
[1673001022326,0.55770302,16797.0,16796.0,0.1158338]
[1673001022583,0.64711998,16797.0,16796.0,0.12426137]
[1673001022831,0.11094849,16797.0,16796.0,0.12426137]
[1673001023394,0.11094849,16797.0,16796.0,0.76916615]
[1673001023664,0.55769383,16797.0,16796.0,0.76916615]
[1673001023923,0.55769383,16797.0,16796.0,1.26916615]
[1673001024709,0.67510575,16797.0,16796.0,0.76916615]
[1673001024956,0.55769383,16797.0,16796.0,1.26940305]
[1673001025209,0.55769383,16797.0,16796.0,1.86478205]
[1673001026226,0.91507717,16797.0,16796.0,2.38324823]
[1673001028827,1.18307421,16797.0,16796.0,2.38324823]
[1673001029085,1.18307421,16797.0,16796.0,2.97862723]
[1673001029086,0.73632887,16797.0,16796.0,2.97862723]
[1673001029608,1.1830747,16797.0,16796.0,2.97862723]
[1673001030389,0.73632936,16797.0,16796.0,2.97862723]
[1673001031424,0.55758399,16797.0,16796.0,10.47862723]
[1673001032195,0.28958646,16797.0,16796.0,10.77862723]
[1673001032682,0.55758399,16797.0,16796.0,10.47862723]
[1673001042107,0.28958646,16797.0,16796.0,10.47862723]
[1673001043384,0.28958646,16797.0,16796.0,10.77862723]
[1673001043667,0.28958646,16797.0,16796.0,10.47862723]
[1673001044130,0.55758399,16797.0,16796.0,1.95992415]
[1673001044390,1.7947717,16797.0,16796.0,1.36454515]
[1673001044639,1.7947717,16797.0,16796.0,0.76908217]
[1673001044640,1.52677417,16797.0,16796.0,0.76908217]
[1673001044894,1.52660082,16797.0,16796.0,0.76908217]
[1673001045394,0.91490382,16797.0,16796.0,0.76908217]
[1673001047156,0.91490382,16797.0,16796.0,1.26908217]
[1673001047431,0.91490382,16797.0,16796.0,0.76908217]
[1673001047953,0.91490382,16797.0,16796.0,0.76931907]
[1673001048205,0.91490382,16797.0,16796.0,0.76908217]
[1673001055967,0.91490382,16797.0,16796.0,1.36446117]
[1673001057166,0.91479683,16797.0,16796.0,1.36446117]
[1673001059739,1.18265881,16797.0,16796.0,1.36446117]
[1673001060490,0.91479683,16797.0,16796.0,1.36446117]
[1673001060733,1.18265888,16797.0,16796.0,1.36446117]
[1673001061191,0.91479683,16797.0,16796.0,1.36446117]
[1673001061433,1.18265769,16797.0,16796.0,1.36446117]
[1673001061688,0.91479683,16797.0,16796.0,1.36446117]
[1673001066256,0.91479683,16797.0,16796.0,1.95984017]
[1673001067620,0.91479683,16797.0,16796.0,1.36446117]
[1673001074923,0.73595684,16797.0,16796.0,1.95984017]
[1673001075418,0.73595684,16797.0,16796.0,9.45984017]
[1673001076613,0.91456008,16797.0,16796.0,9.45984017]
[1673001076878,0.73595684,16797.0,16796.0,9.45984017]
[1673001077847,0.9145724,16797.0,16796.0,9.45984017]
[1673001078357,0.9145724,16797.0,16796.0,9.4597381]
[1673001078868,0.73595684,16797.0,16796.0,10.05361523]
[1673001079379,0.91458409,16797.0,16796.0,10.05361523]
[1673001079629,0.55720075,16797.0,16796.0,11.05361523]
[1673001080405,0.55720075,16797.0,16796.0,11.05385213]
[1673001080686,0.55720075,16797.0,16796.0,10.459975]
[1673001081388,0.2892954,16797.0,16796.0,10.759975]
[1673001087620,0.11066815,16797.0,16796.0,10.759975]
[1673001087879,0.2892954,16797.0,16796.0,10.759975]
[1673001088672,0.11066815,16797.0,16796.0,10.759975]
[1673001090969,0.11066815,16797.0,16796.0,11.35385213]
[1673001091828,0.11066815,16797.0,16796.0,11.65154213]
[1673001092329,0.11066815,16797.0,16796.0,11.057665]
[1673001094520,0.11066815,16797.0,16796.0,10.41276022]
[1673001094793,0.11066815,16797.0,16796.0,10.99870158]
[1673001095501,0.11066815,16797.0,16796.0,10.41276022]
[1673001095720,0.11066815,16797.0,16796.0,11.1623399]
[1673001095942,0.11066815,16797.0,16796.0,11.75621703]
[1673001096781,0.11059615,16797.0,16796.0,11.75621703]
[1673001098388,0.54601675,16799.0,16797.0,0.5]
[1673001098647,0.54601675,16799.0,16798.0,3.140264]
[1673001098900,0.54601675,16799.0,16798.0,2.544956]
[1673001099154,0.54586675,16799.0,16798.0,2.544956]
[1673001099402,0.54586675,16799.0,16798.0,2.79799454]
[1673001099658,0.54686675,16799.0,16798.0,2.79799454]
[1673001099931,0.54686675,16799.0,16798.0,2.544956]
[1673001100578,0.54586675,16799.0,16798.0,2.544956]
[1673001100788,0.58486675,16799.0,16798.0,2.546956]
[1673001101283,0.58486675,16799.0,16798.0,3.20742338]
[1673001102142,0.58486675,16799.0,16798.0,3.20766025]
[1673001105602,0.58486675,16799.0,16798.0,3.80153738]
[1673001106061,0.58486675,16799.0,16798.0,3.20766025]
[1673001108283,0.58477272,16799.0,16798.0,3.20766025]
[1673001112681,0.58477272,16799.0,16798.0,3.72612643]
[1673001113168,0.58477272,16799.0,16798.0,3.20766025]
[1673001115651,0.76308263,16799.0,16798.0,3.20766025]
[1673001116169,0.94163244,16799.0,16798.0,3.20766025]
[1673001116407,0.76308263,16799.0,16798.0,4.32000356]
[1673001116656,0.58469503,16799.0,16798.0,4.32000356]
[1673001116916,0.58469503,16799.0,16798.0,3.72612643]
[1673001118576,0.58469503,16799.0,16798.0,4.02612643]
[1673001119363,0.58469503,16799.0,16798.0,3.72612643]
[1673001119877,0.58469503,16799.0,16798.0,4.02612643]
[1673001120120,0.58458476,16799.0,16798.0,4.02612643]
[1673001120373,0.58458476,16799.0,16798.0,4.62000356]
[1673001120878,0.58458476,16799.0,16798.0,11.82000356]
[1673001121370,0.58458476,16799.0,16798.0,12.12000356]
[1673001123659,0.31688371,16799.0,16798.0,12.12000356]
[1673001127419,0.31688371,16799.0,16798.0,11.82000356]
[1673001127682,0.31688371,16799.0,16798.0,12.12000356]
[1673001127904,0.31688371,16799.0,16798.0,11.82000356]
[1673001129157,0.58476974,16799.0,16798.0,11.82000356]
[1673001135418,0.58476974,16799.0,16798.0,12.12000356]
[1673001135632,0.58476974,16799.0,16798.0,12.72000356]
[1673001136108,0.31688371,16799.0,16798.0,12.72000356]
[1673001137095,0.13833415,16799.0,16798.0,12.2382392]
[1673001137592,0.13833415,16799.0,16798.0,12.78188473]
[1673001139600,0.13833415,16799.0,16798.0,12.2382392]
[1673001139851,0.13833415,16799.0,16798.0,13.11499122]
[1673001140104,0.13833415,16799.0,16798.0,12.84693669]
[1673001140858,0.09933415,16799.0,16798.0,12.84493669]
[1673001141100,0.10433415,16799.0,16798.0,12.96693669]
[1673001141345,0.10433415,16799.0,16798.0,13.76088436]
[1673001145013,0.10433415,16799.0,16798.0,13.58218134]
[1673001145303,0.10433415,16799.0,16798.0,13.76088436]
[1673001146333,0.10433415,16799.0,16798.0,13.72939239]
[1673001147854,0.10433415,16799.0,16798.0,13.4202414]
[1673001148064,0.10433415,16799.0,16798.0,14.29989882]
[1673001148309,0.44670885,16801.0,16798.0,14.29989882]
[1673001148567,0.00027326,16801.0,16800.0,1.6]
[1673001148828,0.17882282,16801.0,16800.0,2.72298118]
[1673001149074,0.17882282,16801.0,16800.0,3.91345718]
[1673001149336,0.17882282,16801.0,16800.0,11.41345718]
[1673001149551,0.00027326,16801.0,16800.0,10.51345718]
[1673001149829,0.17882282,16801.0,16800.0,11.10733431]
[1673001150087,0.17882282,16801.0,16800.0,12.00733431]
[1673001150336,0.17882282,16801.0,16800.0,12.67144381]
[1673001150597,0.00027326,16801.0,16800.0,12.67144381]
[1673001150846,0.17882282,16801.0,16800.0,9.95696263]
[1673001151105,0.18282282,16801.0,16800.0,10.57983381]
[1673001152112,0.18282282,16801.0,16800.0,10.87983381]
[1673001152364,0.00427326,16801.0,16800.0,10.88007066]
[1673001152628,0.00427326,16801.0,16800.0,11.48007066]
[1673001152879,0.00427326,16801.0,16800.0,12.18007066]
[1673001153127,0.00427326,16801.0,16800.0,12.48007066]
[1673001157856,0.00427326,16801.0,16800.0,11.88007066]
[1673001158109,0.00427326,16801.0,16800.0,11.58007066]
[1673001158366,0.00427326,16801.0,16800.0,11.88007066]
[1673001159071,0.00427326,16801.0,16800.0,12.48007066]
[1673001159327,0.00427326,16801.0,16800.0,11.88007066]
[1673001161509,0.10322105,16801.0,16800.0,12.48007066]
[1673001162016,0.10322105,16801.0,16800.0,11.88007066]
[1673001162533,0.10322105,16801.0,16800.0,12.48007066]
[1673001163944,0.10322105,16801.0,16800.0,11.28959466]
[1673001164748,0.10322105,16801.0,16800.0,12.48007066]
[1673001171569,0.10322105,16801.0,16800.0,11.88007066]
[1673001172415,0.10322105,16801.0,16800.0,12.60990883]
[1673001172662,0.10322105,16801.0,16800.0,12.67863956]
[1673001173109,0.10322105,16801.0,16800.0,13.27863956]
[1673001174779,0.10322105,16801.0,16800.0,12.60990883]
[1673001175270,0.10322105,16801.0,16800.0,13.2131415]
[1673001176747,0.10322105,16801.0,16800.0,12.60990883]
[1673001177480,0.10322105,16801.0,16800.0,12.78861185]
[1673001178390,0.10322105,16801.0,16800.0,13.35130245]
[1673001179182,0.10322105,16801.0,16800.0,12.78861185]
[1673001179400,0.10322105,16801.0,16800.0,13.41147252]
[1673001180851,0.10322105,16801.0,16800.0,12.81147252]
[1673001181024,0.10322105,16801.0,16800.0,12.6327695]
[1673001181807,0.10322105,16801.0,16800.0,12.81147252]
[1673001182046,0.10322105,16801.0,16800.0,12.6327695]
[1673001183507,0.10322105,16801.0,16800.0,12.81147252]
[1673001184821,0.10322105,16801.0,16800.0,12.18861185]
[1673001185096,0.10322105,16801.0,16800.0,12.75504195]
[1673001185835,0.10322105,16801.0,16800.0,12.18861185]
[1673001186087,0.10322105,16801.0,16800.0,12.80602992]
[1673001186332,0.10322105,16801.0,16800.0,13.05666638]
[1673001186605,0.10322105,16801.0,16800.0,13.93623787]
[1673001188831,0.10322105,16801.0,16800.0,14.62627883]
[1673001189054,0.10322105,16801.0,16800.0,13.93623787]
[1673001190271,0.10322105,16801.0,16800.0,14.61104663]
[1673001190538,0.10322105,16801.0,16800.0,13.93623787]
[1673001191761,0.10322105,16801.0,16800.0,14.55676857]
[1673001192000,0.10322105,16801.0,16800.0,13.93623787]
[1673001193060,1e-08,16801.0,16800.0,14.11494089]
[1673001194492,1e-08,16801.0,16800.0,13.33580423]
[1673001194739,1e-08,16801.0,16800.0,13.93580423]
[1673001195274,1e-08,16801.0,16800.0,14.23341423]
[1673001198105,1e-08,16801.0,16800.0,13.35384274]
[1673001198358,1e-08,16801.0,16800.0,13.08578821]
[1673001198603,1e-08,16801.0,16800.0,13.35384274]
[1673001199625,1e-08,16801.0,16800.0,13.08578821]
[1673001200114,1e-08,16801.0,16800.0,13.60808292]
[1673001200371,1e-08,16801.0,16800.0,14.75570649]
[1673001201121,1e-08,16801.0,16800.0,14.45810649]
[1673001201356,1e-08,16801.0,16800.0,14.75569649]
[1673001202699,1e-08,16801.0,16800.0,14.93483315]
[1673001203147,1e-08,16801.0,16800.0,14.75572081]
[1673001203395,1e-08,16801.0,16800.0,15.11312685]
[1673001203912,1e-08,16801.0,16800.0,15.1131273]
[1673001204189,1e-08,16801.0,16800.0,15.1131373]
[1673001204442,1e-08,16801.0,16800.0,14.8155373]
[1673001204689,1e-08,16801.0,16800.0,14.63724315]
[1673001206906,1e-08,16801.0,16800.0,15.08289589]
[1673001207153,1e-08,16801.0,16800.0,14.63724315]
[1673001207650,1e-08,16801.0,16800.0,15.08289589]
[1673001207893,1e-08,16801.0,16800.0,14.63724315]
[1673001208389,1e-08,16801.0,16800.0,14.81484136]
[1673001208856,1e-08,16801.0,16800.0,15.08228652]
[1673001209087,1e-08,16801.0,16800.0,14.63663378]
[1673001209306,1e-08,16801.0,16800.0,14.81484136]
[1673001210083,1e-08,16801.0,16800.0,14.63661078]
[1673001212323,1e-08,16801.0,16800.0,14.43661078]
[1673001213267,1e-08,16801.0,16800.0,14.63661078]
[1673001213965,1e-08,16801.0,16800.0,14.67225012]
[1673001214216,1e-08,16801.0,16800.0,15.11790286]
[1673001214472,1e-08,16801.0,16800.0,14.8504807]
[1673001214694,1e-08,16801.0,16800.0,14.67227292]
[1673001214988,1e-08,16801.0,16800.0,14.8504807]
[1673001215213,1e-08,16801.0,16800.0,15.11792574]
[1673001216299,1e-08,16801.0,16800.0,15.11791719]
[1673001217058,1e-08,16801.0,16800.0,14.67226445]
[1673001218521,1e-08,16801.0,16800.0,15.11791719]
[1673001218771,1e-08,16801.0,16800.0,14.8504807]
[1673001219505,1e-08,16801.0,16800.0,14.49307466]
[1673001221222,1e-08,16801.0,16800.0,14.32736917]
[1673001221468,1e-08,16801.0,16800.0,13.97076995]
[1673001222004,1e-08,16801.0,16800.0,13.37076995]
[1673001222279,1e-08,16801.0,16800.0,13.21357232]
[1673001223052,0.44658559,16803.0,16801.0,5.999e-05]
[1673001223305,0.44658559,16803.0,16802.0,2.190334]
[1673001223547,0.44658559,16803.0,16802.0,2.70394281]
[1673001223790,0.44643559,16803.0,16802.0,10.20394281]
[1673001224032,0.44643559,16803.0,16802.0,10.50394281]
[1673001224278,0.17854956,16803.0,16802.0,10.50394281]
[1673001224531,0.17854956,16803.0,16802.0,11.29019555]
[1673001224794,0.21354956,16803.0,16802.0,10.77591527]
[1673001225553,0.21354956,16803.0,16802.0,11.29119555]
[1673001226795,0.21354956,16803.0,16802.0,10.77615209]
[1673001227013,0.48143559,16803.0,16802.0,10.47615209]
[1673001227229,0.48143559,16803.0,16802.0,10.77615209]
[1673001228011,0.21354956,16803.0,16802.0,11.29143237]
[1673001228267,0.48143559,16803.0,16802.0,11.29143237]
[1673001228504,0.21354956,16803.0,16802.0,11.29143237]
[1673001228754,0.48143559,16803.0,16802.0,10.99143237]
[1673001229011,0.21354956,16803.0,16802.0,11.29143237]
[1673001234445,0.035,16803.0,16802.0,11.46977006]
[1673001234964,0.035,16803.0,16802.0,12.61828138]
[1673001235220,0.035,16803.0,16802.0,11.22352474]
[1673001235481,0.035,16803.0,16802.0,11.1644724]
[1673001235746,0.17854956,16804.0,16803.0,0.5]
[1673001235993,0.17854956,16804.0,16803.0,3.10791941]
[1673001236477,0.17854956,16804.0,16803.0,3.77967424]
[1673001236762,0.17854956,16804.0,16803.0,11.27967424]
[1673001237245,0.17854956,16804.0,16803.0,11.31531358]
[1673001237801,0.46396862,16805.0,16803.0,12.01584411]
[1673001238046,0.01753303,16805.0,16804.0,2.41765741]
[1673001238293,0.01753303,16805.0,16804.0,3.78608049]
[1673001238548,0.01753303,16805.0,16804.0,11.48608049]
[1673001238811,0.01753303,16805.0,16804.0,11.52216304]
[1673001239061,0.02153303,16805.0,16804.0,12.21214426]
[1673001239308,0.02153303,16805.0,16804.0,12.03391318]
[1673001239568,0.01753303,16805.0,16804.0,4.40291318]
[1673001240055,0.01753303,16805.0,16804.0,11.86727384]
[1673001240311,0.6392059,16807.0,16804.0,11.86727384]
[1673001240312,0.3495033,16807.0,16805.0,1.0994561]
[1673001240565,0.26788603,16806.0,16805.0,1.88509538]
[1673001240804,0.79624864,16807.0,16805.0,3.08369938]
[1673001241047,0.79624864,16807.0,16806.0,0.0085]
[1673001241391,0.52836261,16807.0,16806.0,0.603525]
[1673001241514,0.79603274,16807.0,16806.0,0.603525]
[1673001241810,0.34928622,16807.0,16806.0,0.91992976]
[1673001242069,0.79603156,16807.0,16806.0,0.91992976]
[1673001242320,0.79703156,16807.0,16806.0,0.95392976]
[1673001242580,0.35028622,16807.0,16806.0,1.58351119]
[1673001242858,0.34928622,16807.0,16806.0,1.54951119]
[1673001243151,0.80003156,16807.0,16806.0,1.65651119]
[1673001244133,0.35328622,16807.0,16806.0,1.65651119]
[1673001244396,0.34928622,16807.0,16806.0,1.54951119]
[1673001244672,0.35028622,16807.0,16806.0,1.58351119]
[1673001244907,0.34928622,16807.0,16806.0,1.54951119]
[1673001245404,0.35328622,16807.0,16806.0,1.65651119]
[1673001245665,0.34928622,16807.0,16806.0,1.54951119]
[1673001245914,0.35028622,16807.0,16806.0,1.58351119]
[1673001246194,0.34928622,16807.0,16806.0,1.54951119]
[1673001246455,0.35269123,16807.0,16806.0,1.65651119]
[1673001247005,0.27166895,16807.0,16806.0,2.25153619]
[1673001247249,0.26766895,16807.0,16806.0,2.14453619]
[1673001247485,0.26866895,16807.0,16806.0,2.17853619]
[1673001247740,0.26866895,16807.0,16806.0,1.82813143]
[1673001247990,0.005,16807.0,16806.0,1.93513143]
[1673001248293,0.44674534,16808.0,16807.0,0.5]
[1673001248478,0.2674473,16808.0,16807.0,1.10349]
[1673001248738,0.2674473,16808.0,16807.0,0.84054964]
[1673001249556,0.44674534,16808.0,16807.0,0.84054964]
[1673001250274,0.44774534,16808.0,16807.0,0.87454964]
[1673001250517,0.44774534,16808.0,16807.0,0.63749]
[1673001250781,0.44774534,16808.0,16807.0,1.13749]
[1673001251013,0.26841612,16808.0,16807.0,1.13793313]
[1673001254376,0.44666051,16808.0,16807.0,1.13793313]
[1673001254613,0.8031499,16808.0,16807.0,1.71451885]
[1673001254837,0.44666115,16808.0,16807.0,1.71451885]
[1673001255368,0.8031499,16808.0,16807.0,1.71451885]
[1673001255613,0.44665987,16808.0,16807.0,2.30950885]
[1673001255947,0.44665987,16808.0,16807.0,2.69995874]
[1673001256375,0.17924375,16808.0,16807.0,3.21462556]
[1673001256632,0.17824375,16808.0,16807.0,3.18062556]
[1673001256886,0.17924375,16808.0,16807.0,2.69995874]
[1673001257186,0.44665987,16808.0,16807.0,2.69995874]
[1673001257603,0.44565987,16808.0,16807.0,2.66595874]
[1673001257822,0.44965987,16808.0,16807.0,2.79695874]
[1673001258325,0.18224375,16808.0,16807.0,2.79695874]
[1673001258586,0.44565987,16808.0,16807.0,2.66595874]
[1673001259921,0.18224375,16808.0,16807.0,2.77295874]
[1673001263085,0.44965987,16808.0,16807.0,2.77295874]
[1673001263306,0.18224375,16808.0,16807.0,3.28762556]
[1673001263858,0.18224375,16808.0,16807.0,2.89717567]